fUSD/lending_fUSD_20240215
["ID","MTS","AMOUNT","RATE_DAILY","PERIOD"]
[314120310,1707999054777,-2598.36187534,0.00039723,2]
[314120311,1707999054846,-532.84765016,0.00039726,7]
[314120312,1707999054858,-500.0,0.00039726,7]
[314120313,1707999054867,-539.00859521,0.00039726,7]
[314120314,1707999054876,-500.0,0.00039726,7]
[314120315,1707999054886,-500.0,0.00039726,7]
[314120316,1707999054896,-500.0,0.00039726,7]
[314120317,1707999054905,-500.0,0.00039726,7]
[314120318,1707999054915,-170.29775087,0.00039726,7]
[314120319,1707999054924,-502.8241964,0.00039726,7]
[314120320,1707999054934,-500.0,0.00039726,7]
[314120321,1707999054943,-496.31090738,0.00039726,7]
[314120322,1707999054952,-154.96568356,0.00039726,7]
[314120323,1707999054961,-532.22106102,0.00039726,7]
[314120324,1707999054970,-153.39098848,0.00039726,7]
[314120325,1707999054979,-500.0,0.00039726,7]
[314120326,1707999054987,-511.27272586,0.00039726,7]
[314120327,1707999054996,-500.0,0.00039726,7]
[314120328,1707999055006,-500.0,0.00039726,7]
[314120329,1707999055015,-500.0,0.00039726,7]
[314120330,1707999055024,-500.0,0.00039726,7]
[314120331,1707999055033,-500.0,0.00039726,2]
[314120332,1707999055042,-500.0,0.00039726,7]
[314120333,1707999055052,-1224.88,0.00039726,7]
[314120334,1707999055061,-500.0,0.00039726,7]
[314120335,1707999055071,-500.0,0.00039726,7]
[314120336,1707999055081,-500.0,0.00039726,7]
[314120337,1707999055090,-172.5982693,0.00039726,7]
[314120338,1707999055099,-500.0,0.00039726,7]
[314120339,1707999055108,-400.66128136,0.00039726,7]
[314120340,1707999055117,-500.0,0.00039726,7]
[314120341,1707999055128,-500.0,0.00039726,7]
[314120342,1707999055138,-500.0,0.00039726,7]
[314120343,1707999055147,-500.0,0.00039726,2]
[314120344,1707999055156,-500.0,0.00039726,7]
[314120345,1707999055165,-500.0,0.00039726,7]
[314120346,1707999055174,-587.91,0.00039726,7]
[314120347,1707999055183,-375.85358643,0.00039726,7]
[314120348,1707999055193,-515.84,0.00039726,7]
[314120349,1707999055202,-745.34,0.00039726,7]
[314120350,1707999055212,-500.0,0.00039726,7]
[314120351,1707999055221,-500.0,0.00039726,7]
[314120352,1707999055230,-160.70855259,0.00039726,7]
[314120353,1707999055239,-500.0,0.00039726,7]
[314120354,1707999055249,-500.0,0.00039726,7]
[314120355,1707999055259,-500.0,0.00039726,7]
[314120356,1707999055269,-500.0,0.00039726,7]
[314120357,1707999055278,-500.0,0.00039726,7]
[314120358,1707999055288,-519.68785061,0.00039726,7]
[314120359,1707999055297,-500.0,0.00039726,7]
[314120360,1707999055306,-500.0,0.00039726,7]
[314120361,1707999055317,-500.0,0.00039726,7]
[314120362,1707999055326,-500.0,0.00039726,7]
[314120363,1707999055336,-500.0,0.00039726,7]
[314120364,1707999055345,-500.0,0.00039726,7]
[314120365,1707999055354,-500.0,0.00039726,7]
[314120366,1707999055364,-500.0,0.00039726,7]
[314120367,1707999055373,-500.0,0.00039726,7]
[314120368,1707999055384,-500.0,0.00039726,7]
[314120369,1707999055394,-500.0,0.00039726,7]
[314120370,1707999055404,-185.46,0.00039726,7]
[314120371,1707999055413,-623.21219143,0.00039726,7]
[314120372,1707999055422,-500.0,0.00039726,7]
[314120373,1707999055431,-500.0,0.00039726,7]
[314120374,1707999055441,-500.0,0.00039726,7]
[314120375,1707999055453,-565.1221515,0.00039726,7]
[314120376,1707999055462,-500.0,0.00039726,2]
[314120377,1707999055473,-500.0,0.00039726,7]
[314120378,1707999055482,-289.73,0.00039726,7]
[314120379,1707999055491,-500.0,0.00039726,7]
[314120380,1707999055500,-1000.0,0.00039726,120]
[314120381,1707999055509,-500.0,0.00039726,7]
[314120382,1707999055519,-546.48244125,0.00039726,7]
[314120383,1707999055530,-500.0,0.00039726,7]
[314120384,1707999055540,-500.0,0.00039726,7]
[314120385,1707999055549,-500.0,0.00039726,7]
[314120386,1707999055558,-500.0,0.00039726,7]
[314120387,1707999055567,-500.0,0.00039726,7]
[314120388,1707999055576,-500.0,0.00039726,7]
[314120389,1707999055585,-166.54354739,0.00039726,7]
[314120390,1707999055594,-529.32076164,0.00039726,7]
[314120391,1707999055603,-500.0,0.00039726,7]
[314120392,1707999055613,-385.28008968,0.00039726,7]
[314120393,1707999055622,-500.0,0.00039726,7]
[314120394,1707999055633,-556.07183139,0.00039726,7]
[314120395,1707999055642,-463.06402722,0.00039726,7]
[314120396,1707999055651,-495.85,0.00039726,7]
[314120397,1707999055660,-500.0,0.00039726,7]
[314120398,1707999055669,-607.40788422,0.00039726,7]
[314120399,1707999055678,-500.0,0.00039726,7]
[314120400,1707999055687,-500.0,0.00039726,7]
[314120401,1707999055696,-500.0,0.00039726,2]
[314120402,1707999055705,-500.0,0.00039726,7]
[314120403,1707999055714,-540.99,0.00039726,7]
[314120404,1707999055723,-500.0,0.00039726,7]
[314120405,1707999055732,-500.0,0.00039726,7]
[314120406,1707999055742,-500.0,0.00039726,7]
[314120407,1707999055751,-500.0,0.00039726,2]
[314120408,1707999055760,-213.52815518,0.00039726,7]
[314120409,1707999055769,-500.0,0.00039726,7]
[314120410,1707999055778,-500.0,0.00039726,7]
[314120411,1707999055788,-314.88671762,0.00039726,7]
[314120412,1707999055798,-500.0,0.00039726,7]
[314120413,1707999055807,-500.0,0.00039726,7]
[314120414,1707999055817,-500.0,0.00039726,7]
[314120415,1707999055826,-500.0,0.00039726,7]
[314120416,1707999055835,-500.0,0.00039726,7]
[314120417,1707999055844,-500.0,0.00039726,7]
[314120418,1707999055853,-500.0,0.00039726,7]
[314120419,1707999055863,-500.0,0.00039726,7]
[314120420,1707999055872,-500.0,0.00039726,7]
[314120421,1707999055882,-500.0,0.00039726,7]
[314120422,1707999055890,-281.88820774,0.00039726,7]
[314120423,1707999055899,-500.0,0.00039726,7]
[314120424,1707999055909,-500.0,0.00039726,7]
[314120425,1707999055917,-500.0,0.00039726,7]
[314120426,1707999055926,-500.0,0.00039726,7]
[314120427,1707999055935,-761.77,0.00039726,7]
[314120428,1707999055944,-500.0,0.00039726,7]
[314120429,1707999055953,-500.0,0.00039726,7]
[314120430,1707999055962,-500.0,0.00039726,7]
[314120431,1707999055971,-500.0,0.00039726,7]
[314120432,1707999055980,-516.09298155,0.00039726,7]
[314120433,1707999055989,-500.0,0.00039726,7]
[314120434,1707999055997,-481.54086343,0.00039726,7]
[314120435,1707999056006,-500.0,0.00039726,7]
[314120436,1707999056015,-500.0,0.00039726,7]
[314120437,1707999056024,-500.0,0.00039726,7]
[314120438,1707999056033,-507.21024524,0.00039726,7]
[314120439,1707999056044,-500.0,0.00039726,7]
[314120440,1707999056053,-500.0,0.00039726,7]
[314120441,1707999056063,-797.34,0.00039726,7]
[314120442,1707999056072,-500.0,0.00039726,7]
[314120443,1707999056081,-500.0,0.00039726,7]
[314120444,1707999056091,-500.0,0.00039726,7]
[314120445,1707999056101,-500.0,0.00039726,7]
[314120446,1707999056111,-508.14999002,0.00039726,7]
[314120447,1707999056120,-500.0,0.00039726,7]
[314120448,1707999056132,-500.0,0.00039726,7]
[314120449,1707999056141,-500.0,0.00039726,7]
[314120450,1707999056150,-500.0,0.00039726,7]
[314120451,1707999056159,-500.0,0.00039726,7]
[314120452,1707999056168,-500.0,0.00039726,7]
[314120453,1707999056178,-500.0,0.00039726,7]
[314120454,1707999056187,-500.0,0.00039726,7]
[314120455,1707999056197,-500.0,0.00039726,7]
[314120456,1707999056206,-500.0,0.00039726,7]
[314120457,1707999056215,-500.0,0.00039726,7]
[314120458,1707999056224,-500.0,0.00039726,7]
[314120459,1707999056234,-371.50445755,0.00039726,7]
[314120460,1707999056243,-500.0,0.00039726,7]
[314120461,1707999056253,-500.0,0.00039726,7]
[314120462,1707999056262,-500.0,0.00039726,7]
[314120463,1707999056271,-500.0,0.00039726,7]
[314120464,1707999056281,-500.0,0.00039726,7]
[314120465,1707999056290,-500.0,0.00039726,7]
[314120466,1707999056299,-500.0,0.00039726,7]
[314120467,1707999056308,-530.87632139,0.00039726,7]
[314120468,1707999056317,-637.18292518,0.00039726,7]
[314120469,1707999056326,-500.0,0.00039726,7]
[314120470,1707999056337,-500.0,0.00039726,7]
[314120471,1707999056346,-500.0,0.00039726,7]
[314120472,1707999056355,-150.0,0.00039726,7]
[314120473,1707999056364,-500.0,0.00039726,7]
[314120474,1707999056373,-500.0,0.00039726,7]
[314120475,1707999056383,-226.74238218,0.00039726,7]
[314120476,1707999056393,-500.0,0.00039726,7]
[314120477,1707999056401,-500.0,0.00039726,7]
[314120478,1707999056411,-500.0,0.00039726,7]
[314120479,1707999056420,-500.0,0.00039726,7]
[314120480,1707999056429,-500.0,0.00039726,7]
[314120481,1707999056439,-500.0,0.00039726,7]
[314120482,1707999056452,-538.94196779,0.00039726,7]
[314120483,1707999056461,-500.0,0.00039726,7]
[314120484,1707999056471,-524.56973147,0.00039726,7]
[314120485,1707999056481,-500.0,0.00039726,7]
[314120486,1707999056490,-528.07846744,0.00039726,7]
[314120487,1707999056499,-357.11,0.00039726,7]
[314120488,1707999056509,-500.0,0.00039726,7]
[314120489,1707999056519,-500.0,0.00039726,7]
[314120490,1707999056528,-500.0,0.00039726,7]
[314120491,1707999056539,-564.73010414,0.00039726,7]
[314120492,1707999056548,-500.0,0.00039726,7]
[314120493,1707999056557,-500.0,0.00039726,7]
[314120494,1707999056567,-541.25,0.00039726,7]
[314120495,1707999056576,-386.5493029,0.00039726,7]
[314120496,1707999056586,-527.02311833,0.00039726,7]
[314120497,1707999056595,-500.0,0.00039726,7]
[314120498,1707999056604,-500.0,0.00039726,7]
[314120499,1707999056613,-548.10448524,0.00039726,7]
[314120500,1707999056622,-542.09300149,0.00039726,7]
[314120501,1707999056633,-500.0,0.00039726,7]
[314120502,1707999056642,-500.0,0.00039726,7]
[314120503,1707999056651,-419.29678064,0.00039726,7]
[314120504,1707999056660,-500.0,0.00039726,7]
[314120505,1707999056669,-500.0,0.00039726,7]
[314120506,1707999056678,-556.05267109,0.00039726,7]
[314120507,1707999056687,-500.0,0.00039726,7]
[314120508,1707999056696,-500.0,0.00039726,7]
[314120509,1707999056705,-500.0,0.00039726,7]
[314120510,1707999056715,-500.0,0.00039726,7]
[314120511,1707999056724,-565.45,0.00039726,7]
[314120512,1707999056732,-500.0,0.00039726,7]
[314120513,1707999056741,-500.0,0.00039726,7]
[314120514,1707999056751,-566.94101131,0.00039726,7]
[314120515,1707999056760,-547.95025214,0.00039726,7]
[314120516,1707999056769,-1047.53,0.00039726,7]
[314120517,1707999056778,-500.0,0.00039726,7]
[314120518,1707999056787,-434.27188239,0.00039726,7]
[314120519,1707999056796,-500.0,0.00039726,7]
[314120520,1707999056805,-500.0,0.00039726,7]
[314120521,1707999056814,-500.0,0.00039726,7]
[314120522,1707999056824,-527.03,0.00039726,7]
[314120523,1707999056834,-500.0,0.00039726,7]
[314120524,1707999056843,-500.0,0.00039726,7]
[314120525,1707999056853,-500.0,0.00039726,7]
[314120526,1707999056862,-500.0,0.00039726,7]
[314120527,1707999056871,-519.42852308,0.00039726,7]
[314120528,1707999056880,-500.0,0.00039726,7]
[314120529,1707999056889,-500.0,0.00039726,7]
[314120530,1707999056898,-500.0,0.00039726,7]
[314120531,1707999056907,-500.0,0.00039726,7]
[314120532,1707999056917,-500.0,0.00039726,7]
[314120533,1707999056926,-500.0,0.00039726,7]
[314120534,1707999056935,-500.0,0.00039726,7]
[314120535,1707999056944,-1816.64,0.00039726,7]
[314120536,1707999056953,-500.0,0.00039726,7]
[314120537,1707999056963,-500.0,0.00039726,7]
[314120538,1707999056972,-500.0,0.00039726,7]
[314120539,1707999056982,-526.70803065,0.00039726,7]
[314120540,1707999056991,-500.0,0.00039726,7]
[314120541,1707999056999,-500.0,0.00039726,7]
[314120542,1707999057009,-262.41245731,0.00039726,7]
[314120543,1707999057018,-841.89,0.00039726,7]
[314120544,1707999057027,-1269.83,0.00039726,7]
[314120545,1707999057036,-2625.56,0.00039726,7]
[314120546,1707999057045,-500.0,0.00039726,7]
[314120547,1707999057055,-368.78403471,0.00039726,7]
[314120548,1707999057064,-500.0,0.00039726,7]
[314120549,1707999057073,-500.0,0.00039726,7]
[314120550,1707999057082,-500.0,0.00039726,7]
[314120551,1707999057091,-500.0,0.00039726,7]
[314120552,1707999057100,-500.0,0.00039726,7]
[314120553,1707999057110,-201.37390558,0.00039726,7]
[314120554,1707999057120,-1066.86,0.00039726,7]
[314120555,1707999057130,-500.0,0.00039726,7]
[314120556,1707999057140,-500.0,0.00039726,7]
[314120557,1707999057149,-500.0,0.00039726,7]
[314120558,1707999057159,-500.0,0.00039726,7]
[314120559,1707999057169,-913.07,0.00039726,7]
[314120560,1707999057178,-500.0,0.00039726,7]
[314120561,1707999057187,-500.0,0.00039726,7]
[314120562,1707999057197,-593.56639225,0.00039726,7]
[314120563,1707999057206,-536.01433717,0.00039726,7]
[314120564,1707999057216,-45685.49,0.00039726,7]
[314120565,1707999057225,-500.0,0.00039726,7]
[314120566,1707999057235,-500.0,0.00039726,7]
[314120567,1707999057245,-511.94,0.00039726,7]
[314120568,1707999057254,-235.39935837,0.00039726,7]
[314120569,1707999057263,-500.0,0.00039726,7]
[314120570,1707999057273,-696.23,0.00039726,7]
[314120571,1707999057282,-1559.64,0.00039726,7]
[314120572,1707999057292,-1928.86,0.00039726,7]
[314120573,1707999057301,-500.0,0.00039726,7]
[314120574,1707999057312,-500.0,0.00039726,7]
[314120575,1707999057321,-500.0,0.00039726,7]
[314120576,1707999057331,-500.0,0.00039726,7]
[314120577,1707999057341,-802.11,0.00039726,7]
[314120578,1707999057351,-500.0,0.00039726,7]
[314120579,1707999057362,-500.0,0.00039726,7]
[314120580,1707999057372,-808.03,0.00039726,7]
[314120581,1707999057383,-500.0,0.00039726,7]
[314120582,1707999057392,-1753.65,0.00039726,7]
[314120583,1707999057402,-500.0,0.00039726,7]
[314120584,1707999057411,-500.0,0.00039726,7]
[314120585,1707999057420,-500.0,0.00039726,7]
[314120586,1707999057434,-525.42,0.00039726,7]
[314120587,1707999057444,-500.0,0.00039726,7]
[314120588,1707999057453,-514.82813539,0.00039726,7]
[314120589,1707999057462,-2057.13,0.00039726,7]
[314120590,1707999057473,-500.0,0.00039726,7]
[314120591,1707999057482,-521.46840385,0.00039726,7]
[314120592,1707999057600,-500.0,0.00039726,7]
[314120593,1707999057612,-500.0,0.00039726,7]
[314120594,1707999057621,-500.0,0.00039726,7]
[314120595,1707999057633,-500.0,0.00039726,7]
[314120596,1707999057642,-548.6292419,0.00039726,7]
[314120597,1707999057652,-500.0,0.00039726,7]
[314120598,1707999057661,-2339.49,0.00039726,7]
[314120599,1707999057670,-500.0,0.00039726,7]
[314120600,1707999057679,-1863.08,0.00039726,7]
[314120601,1707999057688,-500.0,0.00039726,7]
[314120602,1707999057697,-500.0,0.00039726,7]
[314120603,1707999057706,-500.0,0.00039726,7]
[314120604,1707999057715,-500.0,0.00039726,7]
[314120605,1707999057724,-500.0,0.00039726,7]
[314120606,1707999057733,-500.0,0.00039726,7]
[314120607,1707999057742,-575.03,0.00039726,7]
[314120608,1707999057752,-1160.17,0.00039726,7]
[314120609,1707999057760,-725.96,0.00039726,7]
[314120610,1707999057769,-500.0,0.00039726,7]
[314120611,1707999057778,-500.0,0.00039726,7]
[314120612,1707999057787,-500.0,0.00039726,7]
[314120613,1707999057796,-500.0,0.00039726,7]
[314120614,1707999057805,-171.40501213,0.00039726,7]
[314120615,1707999057814,-500.0,0.00039726,7]
[314120616,1707999057823,-500.0,0.00039726,7]
[314120617,1707999057833,-500.0,0.00039726,7]
[314120618,1707999057843,-1087.27,0.00039726,7]
[314120619,1707999057852,-500.0,0.00039726,7]
[314120620,1707999057862,-500.0,0.00039726,7]
[314120621,1707999057871,-500.0,0.00039726,7]
[314120622,1707999057882,-500.0,0.00039726,7]
[314120623,1707999057891,-500.0,0.00039726,7]
[314120624,1707999057900,-500.0,0.00039726,7]
[314120625,1707999057909,-500.0,0.00039726,7]
[314120626,1707999057918,-1732.36,0.00039726,7]
[314120627,1707999057926,-500.0,0.00039726,7]
[314120628,1707999057935,-535.71107906,0.00039726,7]
[314120629,1707999057944,-521.36,0.00039726,7]
[314120630,1707999057954,-1635.74,0.00039726,7]
[314120631,1707999057963,-567.74,0.00039726,7]
[314120632,1707999057972,-500.0,0.00039726,7]
[314120633,1707999057981,-500.0,0.00039726,7]
[314120634,1707999057990,-500.0,0.00039726,7]
[314120635,1707999057999,-500.0,0.00039726,7]
[314120636,1707999058008,-768.14,0.00039726,7]
[314120637,1707999058017,-500.0,0.00039726,7]
[314120638,1707999058027,-500.0,0.00039726,7]
[314120639,1707999058036,-500.0,0.00039726,7]
[314120640,1707999058056,-500.0,0.00039726,7]
[314120641,1707999058067,-500.0,0.00039726,7]
[314120642,1707999058077,-570.0475101,0.00039726,7]
[314120643,1707999058086,-500.0,0.00039726,7]
[314120644,1707999058096,-500.0,0.00039726,7]
[314120645,1707999058106,-500.0,0.00039726,7]
[314120646,1707999058115,-1380.21,0.00039726,7]
[314120647,1707999058125,-511.86,0.00039726,7]
[314120648,1707999058139,-500.0,0.00039726,7]
[314120649,1707999058148,-529.65992867,0.00039726,7]
[314120650,1707999058158,-500.0,0.00039726,7]
[314120651,1707999058168,-500.0,0.00039726,7]
[314120652,1707999058178,-500.0,0.00039726,7]
[314120653,1707999058189,-1719.13,0.00039726,7]
[314120654,1707999058198,-500.0,0.00039726,7]
[314120655,1707999058209,-535.58096977,0.00039726,7]
[314120656,1707999058219,-500.0,0.00039726,7]
[314120657,1707999058229,-500.0,0.00039726,7]
[314120658,1707999058239,-500.0,0.00039726,7]
[314120659,1707999058249,-500.0,0.00039726,7]
[314120660,1707999058259,-527.93157993,0.00039726,7]
[314120661,1707999058269,-500.0,0.00039726,7]
[314120662,1707999058279,-500.0,0.00039726,7]
[314120663,1707999058289,-648.31,0.00039726,7]
[314120664,1707999058299,-500.0,0.00039726,7]
[314120665,1707999058310,-520.94438638,0.00039726,7]
[314120666,1707999058320,-500.0,0.00039726,7]
[314120667,1707999058329,-1048.73,0.00039726,7]
[314120668,1707999058339,-388.44820833,0.00039726,7]
[314120669,1707999058348,-500.0,0.00039726,7]
[314120670,1707999058358,-530.92753383,0.00039726,7]
[314120671,1707999058367,-500.0,0.00039726,7]
[314120672,1707999058377,-500.0,0.00039726,7]
[314120673,1707999058389,-609.02,0.00039726,7]
[314120674,1707999058398,-596.65,0.00039726,7]
[314120675,1707999058408,-4490.34,0.00039726,7]
[314120676,1707999058417,-500.0,0.00039726,7]
[314120677,1707999058428,-261.26601581,0.00039726,7]
[314120678,1707999058438,-500.0,0.00039726,7]
[314120679,1707999058449,-555.63831004,0.00039726,7]
[314120680,1707999058458,-500.0,0.00039726,7]
[314120681,1707999058467,-1417.38,0.00039726,7]
[314120682,1707999058477,-500.0,0.00039726,7]
[314120683,1707999058487,-500.0,0.00039726,7]
[314120684,1707999058499,-500.0,0.00039726,7]
[314120685,1707999058509,-500.0,0.00039726,7]
[314120686,1707999058519,-500.0,0.00039726,7]
[314120687,1707999058530,-597.42509435,0.00039726,7]
[314120688,1707999058539,-500.0,0.00039726,7]
[314120689,1707999058549,-500.0,0.00039726,7]
[314120690,1707999058558,-4183.33,0.00039726,7]
[314120691,1707999058568,-500.0,0.00039726,7]
[314120692,1707999058577,-500.0,0.00039726,7]
[314120693,1707999058587,-500.0,0.00039726,7]
[314120694,1707999058596,-500.0,0.00039726,7]
[314120695,1707999058606,-1880.42,0.00039726,7]
[314120696,1707999058615,-500.0,0.00039726,7]
[314120697,1707999058625,-500.0,0.00039726,7]
[314120698,1707999058638,-500.0,0.00039726,7]
[314120699,1707999058648,-574.20118815,0.00039726,7]
[314120700,1707999058657,-161.10672897,0.00039726,7]
[314120701,1707999058667,-500.0,0.00039726,7]
[314120702,1707999058676,-500.0,0.00039726,7]
[314120703,1707999058685,-500.0,0.00039726,7]
[314120704,1707999058694,-500.0,0.00039726,7]
[314120705,1707999058703,-500.0,0.00039726,7]
[314120706,1707999058713,-507.36,0.00039726,7]
[314120707,1707999058722,-500.0,0.00039726,7]
[314120708,1707999058732,-500.0,0.00039726,7]
[314120709,1707999058742,-150.0,0.00039742,2]
[314120710,1707999058752,-151.021518,0.00039748,21]
[314120711,1707999058764,-153.70464917,0.00039757,5]
[314120712,1707999058774,-150.0,0.00039758,2]
[314120713,1707999058784,-1798.48649746,0.0003978,2]
[314120714,1707999058794,-915.77151601,0.0003978,2]
[314120715,1707999058803,-4809.81848243,0.0003978,2]
[314120716,1707999058813,-1865.75633066,0.0003978,2]
[314120717,1707999058823,-607.74,0.00039787,2]
[314120718,1707999058833,-1154.3,0.00039794,2]
[314120719,1707999058843,-151.021518,0.00039798,19]
[314120720,1707999058853,-23496.02574456,0.000398,2]
[314120721,1707999058863,-5117.11721077,0.000398,7]
[314120722,1707999058872,-3898.59033568,0.00039801,2]
[314120723,1707999058884,-240.84506107,0.00039822,2]
[314120724,1707999058893,-150.0,0.00039844,2]
[314120725,1707999058903,-10776.47,0.00039863,7]
[314120726,1707999058912,-10776.47,0.00039863,7]
[314120727,1707999058922,-150.0,0.00039879,2]
[314120728,1707999058931,-180474.67979637,0.0003988,2]
[314120729,1707999058961,-4495.30915404,0.0003988,2]
[314120730,1707999058974,-2441.03644536,0.0003988,2]
[314120731,1707999058985,-366.94399564,0.0003988,2]
[314120732,1707999058997,-79936.38154091,0.0003988,2]
[314120733,1707999059243,-2209.66041516,0.00029126,2]
[314120734,1707999059253,-196.34508081,0.00029126,2]
[314120735,1707999059262,-212.04450403,0.0003988,2]
[314120736,1707999059275,-537.28013448,0.0003988,2]
[314120737,1707999059286,-292.91800835,0.0003988,2]
[314120738,1707999059298,-274.545,0.0003988,2]
[314120739,1707999059310,-1473.16193053,0.0003988,2]
[314120740,1707999059322,-1225.30926132,0.0003988,2]
[314120741,1707999059334,-6978.74073871,0.0003988,2]
[314120742,1707999059346,-381.47480638,0.0003988,2]
[314120743,1707999059357,-261.955,0.0003988,2]
[314120744,1707999059372,-915.0,0.0003988,2]
[314120753,1708000231516,-374.486325,0.0002786,2]
[314120754,1708000231528,-91.473675,0.0002786,2]
[314120755,1708000231538,-300.0,0.00027999,2]
[314120756,1708000231548,-411.85054766,0.00029,2]
[314120757,1708000231636,-4442.91622524,0.00029,2]
[314120758,1708000231647,-153.1764947,0.000327,2]
[314120759,1708000231657,-150.1,0.000328,2]
[314120760,1708000231667,-171.0,0.00033,2]
[314120761,1708000231676,-444.80727976,0.00033543,2]
[314120762,1708000231688,-304.54272024,0.00033543,2]
[314120763,1708000231697,-151.17,0.00033547,2]
[314120764,1708000231706,-5031.21218939,0.00033964,10]
[314120765,1708000231715,-3589.49,0.00033964,5]
[314120766,1708000231725,-26260.88063205,0.00033975,10]
[314120767,1708000231734,-1982.12655193,0.00033975,10]
[314120768,1708000231743,-2075.79593093,0.00033975,10]
[314120769,1708000231752,-150.36398041,0.00034552,2]
[314120770,1708000231761,-250.0,0.00035318,2]
[314120771,1708000231771,-250.0,0.00035335,111]
[314120772,1708000231780,-287.23,0.0003537,2]
[314120773,1708000231791,-1000.0,0.00035371,2]
[314120774,1708000231800,-200.0,0.00035388,2]
[314120775,1708000231813,-187.55,0.00035419,2]
[314120776,1708000231822,-200.0,0.00035505,2]
[314120777,1708000231831,-2000.0,0.00035538,2]
[314120778,1708000231840,-250.0,0.00035641,2]
[314120779,1708000231850,-150.0,0.00035739,2]
[314120780,1708000231859,-1047.62,0.00035744,2]
[314120781,1708000231868,-153.1764947,0.00035795,2]
[314120782,1708000231878,-218.42,0.00035795,2]
[314120784,1708000231888,-749.35,0.00035807,2]
[314120786,1708000231897,-152.61,0.00035819,2]
[314120788,1708000231907,-169.32,0.00035821,2]
[314120790,1708000231917,-2710.0,0.000359,3]
[314120791,1708000231926,-15813.0,0.000359,3]
[314120794,1708000231935,-10000.0,0.00036,15]
[314120796,1708000231945,-23900.0,0.00036023,2]
[314120797,1708000231954,-152.61,0.00036193,2]
[314120798,1708000231963,-146.65640132,0.0003623,2]
[314120799,1708000231980,-177.34359868,0.0003623,2]
[314120800,1708000231989,-268.51251729,0.00036325,4]
[314120801,1708000231998,-246.70502678,0.00036325,4]
[314120802,1708000232008,-239.23303625,0.00036325,4]
[314120803,1708000232017,-152.61,0.00036566,2]
[314120804,1708000232026,-1960.06,0.00036668,2]
[314120805,1708000232035,-152.61,0.00036939,2]
[314120806,1708000232043,-1107.891,0.00037241,2]
[314120807,1708000232052,-152.61,0.00037313,2]
[314120808,1708000232061,-152.61,0.00037686,2]
[314120809,1708000232070,-291.39,0.000377,3]
[314120810,1708000232079,-291.39,0.000377,3]
[314120811,1708000232088,-291.39,0.000377,3]
[314120812,1708000232097,-291.39,0.000377,3]
[314120813,1708000232106,-291.39,0.000377,3]
[314120814,1708000232115,-291.39,0.000377,3]
[314120815,1708000232124,-291.39,0.000377,3]
[314120816,1708000232133,-291.39,0.000377,3]
[314120817,1708000232143,-291.39,0.000377,3]
[314120818,1708000232151,-291.39,0.000377,3]
[314120819,1708000232161,-291.39,0.000377,3]
[314120820,1708000232170,-291.39,0.000377,3]
[314120821,1708000232179,-291.39,0.000377,3]
[314120822,1708000232189,-291.39,0.000377,3]
[314120823,1708000232198,-291.39,0.000377,3]
[314120824,1708000232208,-291.39,0.000377,3]